[Event "VII Totalizator Sportowy 2022"]
[Site "Bydgoszcz"]
[Date "2022.06.28"]
[Round "4.13"]
[White "Sernecki, Franciszek"]
[Black "Zalega, Maciej"]
[Result "1-0"]
[ECO "E91"]
[WhiteElo "2272"]
[BlackElo "2051"]
[Annotator "TA"]
[PlyCount "61"]
[EventDate "2022.06.25"]
[EventType "swiss"]
[EventCountry "POL"]
[SourceTitle "playchess.com"]
[Source "ChessBase"]
[SourceQuality "1"]
[TimeControl "40/5400+30:1800+30"]

{[%evp 18,61,69,59,55,55,55,55,69,75,96,113,108,107,116,94,115,93,250,247,341,348,349,341,418,425,392,373,718,723,724,721,710,701,704,704,699,670,639,639,29992,29993,29993,29990,29990,29991]} 1. d4 Nf6 2. c4 g6 3. Nc3 Bg7 4. e4 d6 5. Nf3 O-O 6. Be2 Nc6 7. d5 Ne5 8. Nxe5 dxe5 9. O-O e6 10. Be3 $1 {10.Be3 scores better than 10.Bg5.} exd5 {[%emt 0:24:30] E91: King's Indian: Classical: 6 Be2, unusual replies including 6...c5 and 6...Bg4.} 11. cxd5 {[%emt 0:21:03]} Ne8 12. Rc1 Nd6 {[%emt 0:07:44] White is slightly better.} 13. Nb5 {[%emt 0:03:38]} Nxb5 {[%emt 0:06:37]} 14. Bxb5 {[%emt 0:00:02] [#]} a6 $146 {[%emt 0:01:16]} ({Predecessor:} 14... f5 15. f3 Kh8 16. Qc2 f4 17. Bc5 Rf7 18. Rfd1 a6 19. Bc4 b5 20. Bb3 Rd7 {1-0 (37) Graelken,M (2179)-Sparwel,O (1933) Germany 2003}) 15. Ba4 {[%emt 0:04:46] White is much more active. The black rooks are badly placed.} Bd7 {[%emt 0:00:47]} 16. Bxd7 {[%emt 0:05:54]} Qxd7 {[%emt 0:00:11]} 17. Qb3 {[%emt 0:00:36]} b6 $2 {[%emt 0:06:03] [#] Loses the game.} (17... Rfb8 $16 {was worth a try.}) 18. Rc6 $1 $18 {[%emt 0:04:08]} Kh8 {[%emt 0:26:20]} 19. Rfc1 {[%emt 0:04:08]} Ra7 {[%emt 0:00:26]} 20. Qc2 {[%emt 0:02:01]} f5 {[%emt 0:02:23]} 21. Rxc7 {[%emt 0:02:05]} Rxc7 {[%emt 0:00:02]} 22. Qxc7 {[%emt 0:00:08]} Qa4 {[%emt 0:00:06]} (22... Qxc7 23. Rxc7 fxe4) 23. d6 {[%emt 0:11:39] [#] And now d7 would win.} f4 {[%emt 0:01:30]} 24. Bxb6 {[%emt 0:03:21][%cal Be3b6,Bb6d8,Bd8f6][%mdl 32] Strongly threatening d7.} Qxe4 {[%emt 0:16:19]} 25. d7 {[%emt 0:01:17]} Bf6 {[%emt 0:01:29]} 26. Qd6 {[%emt 0:01:21][%cal Rd6f8]} Kg7 {[%emt 0:00:15]} 27. d8=R {[%emt 0:03:05]} Bxd8 {[%emt 0:00:13]} 28. Bxd8 {[%emt 0:00:06] Threatening mate with Rc7+.} f3 {[%emt 0:00:08]} 29. Rc7+ {[%emt 0:01:24] White mates.} Rf7 {[%emt 0:00:33]} 30. Bf6+ {[%emt 0:00:57]} Kh6 {[%emt 0:00:03]} 31. Qd2+ {[%emt 0:00:06] Weighted Error Value: White=0.07 (flawless) /Black=0.67} 1-0

[Event "VII Totalizator Sportowy 2022"]
[Site "Bydgoszcz"]
[Date "2022.06.28"]
[Round "4.14"]
[White "Ulasevich, Sergei"]
[Black "Ratajczak, Hubert"]
[Result "1-0"]
[ECO "C42"]
[WhiteElo "2217"]
[BlackElo "1899"]
[Annotator "RC"]
[PlyCount "83"]
[EventDate "2022.06.25"]
[EventType "swiss"]
[EventCountry "POL"]
[SourceTitle "playchess.com"]
[Source "ChessBase"]
[SourceQuality "1"]
[TimeControl "40/5400+30:1800+30"]

1. e4 e5 2. Nf3 Nf6 3. Nxe5 d6 4. Nf3 Nxe4 5. Nc3 Nxc3 6. dxc3 Be7 7. Be3 O-O 8. Qd2 Nd7 9. O-O-O c6 10. h4 d5 11. Kb1 {[%emt 0:22:38]} h6 {[%emt 0:17:21]} 12. g4 Nc5 {[%emt 0:03:31]} 13. Ne5 {[%emt 0:06:50]} Ne4 14. Qc1 {[%emt 0:03:32]} Bf6 {[%emt 0:05:16]} 15. f4 {[%emt 0:14:39]} Qa5 {[%emt 0:06:28]} 16. Bd3 {[%emt 0:07:11]} Be6 {[%emt 0:04:19]} 17. a3 {[%emt 0:01:44]} Nc5 {[%emt 0:04:44]} 18. Be2 {[%emt 0:03:02]} Ne4 {[%emt 0:02:27]} 19. Rdg1 {[%emt 0:08:00]} c5 {[%emt 0:04:29]} 20. Bd3 {[%emt 0:04:21]} Qc7 {[%emt 0:13:46]} 21. Qe1 {[%emt 0:09:44]} b6 {[%emt 0:05:23]} 22. Nf3 {[%emt 0:00:52]} g6 {[%emt 0:02:07]} 23. f5 {[%emt 0:02:30]} Bd7 {[%emt 0:01:13]} 24. g5 {[%emt 0:02:39]} Bh8 {[%emt 0:00:27]} 25. f6 {[%emt 0:00:38]} h5 {[%emt 0:00:45]} 26. Nd2 {[%emt 0:01:15]} Rfe8 {[%emt 0:01:21]} 27. Nxe4 {[%emt 0:00:50]} dxe4 {[%emt 0:00:01]} 28. Bc4 {[%emt 0:01:18]} b5 {[%emt 0:00:49]} 29. Bd5 {[%emt 0:00:06]} Rab8 {[%emt 0:01:09]} 30. c4 {[%emt 0:02:40]} b4 {[%emt 0:01:33]} 31. axb4 {[%emt 0:00:10]} Rxb4 {[%emt 0:00:55]} 32. Qc3 {[%emt 0:01:21]} Reb8 {[%emt 0:00:32]} 33. b3 {[%emt 0:02:11]} a5 {[%emt 0:01:37]} 34. Rf1 {[%emt 0:01:35]} Qa7 {[%emt 0:01:07]} 35. Bf4 {[%emt 0:02:25]} R8b6 {[%emt 0:00:35]} 36. Qe5 {[%emt 0:01:33]} Bxf6 {[%emt 0:00:50]} 37. gxf6 {[%emt 0:00:45]} Rxb3+ {[%emt 0:07:20]} 38. cxb3 {[%emt 0:00:10]} Rxb3+ {[%emt 0:00:03]} 39. Ka2 {[%emt 0:01:00]} Qb6 {[%emt 0:00:28]} 40. Bxf7+ {[%emt 0:00:00]} Kh8 {[%emt 0:00:00]} 41. Rb1 {[%emt 0:02:34]} a4 {[%emt 0:00:55]} 42. Bxg6 {[%emt 0:00:17]} 1-0

[Event "VII Totalizator Sportowy 2022"]
[Site "Bydgoszcz"]
[Date "2022.06.28"]
[Round "4.15"]
[White "Jarocka, Liwia"]
[Black "Kacprzak, Karol"]
[Result "1-0"]
[ECO "B40"]
[WhiteElo "2006"]
[BlackElo "2200"]
[Annotator "RC"]
[PlyCount "73"]
[EventDate "2022.06.25"]
[EventType "swiss"]
[EventCountry "POL"]
[SourceTitle "playchess.com"]
[Source "ChessBase"]
[SourceQuality "1"]
[TimeControl "40/5400+30:1800+30"]

1. e4 {[%emt 0:00:02]} c5 {[%emt 0:03:17]} 2. Nf3 {[%emt 0:00:13]} e6 3. c3 {[%emt 0:01:55]} Nf6 {[%emt 0:05:47]} 4. e5 {[%emt 0:01:03]} Nd5 {[%emt 0:00:07]} 5. d4 cxd4 {[%emt 0:00:09]} 6. cxd4 {[%emt 0:00:11]} Nc6 {[%emt 0:00:56]} 7. Nc3 {[%emt 0:03:05]} Nxc3 {[%emt 0:02:59]} 8. bxc3 {[%emt 0:00:05]} d6 {[%emt 0:00:16]} 9. Bb5 {[%emt 0:07:37]} Bd7 10. exd6 {[%emt 0:01:51]} Bxd6 {[%emt 0:03:31]} 11. O-O {[%emt 0:00:15]} O-O {[%emt 0:20:39]} 12. Ng5 {[%emt 0:15:12]} Be7 {[%emt 0:05:44]} 13. Ne4 {[%emt 0:13:30]} Na5 {[%emt 0:15:57]} 14. Bd3 {[%emt 0:02:10]} Rc8 {[%emt 0:01:05]} 15. Qh5 {[%emt 0:19:50]} f5 {[%emt 0:03:56]} 16. Ng5 {[%emt 0:05:21]} h6 {[%emt 0:00:31]} 17. Nh3 {[%emt 0:00:13]} Qe8 {[%emt 0:09:46]} 18. Qe2 {[%emt 0:01:00]} g5 {[%emt 0:02:40]} 19. Re1 {[%emt 0:01:24]} Bd6 {[%emt 0:03:56]} 20. c4 {[%emt 0:05:02]} Nc6 {[%emt 0:02:01]} 21. Qb2 {[%emt 0:02:21]} b6 {[%emt 0:03:02]} 22. d5 {[%emt 0:05:24]} Nb4 {[%emt 0:01:01]} 23. Bb1 {[%emt 0:00:06]} Qg6 {[%emt 0:04:40]} 24. c5 {[%emt 0:02:20]} Bxc5 {[%emt 0:02:06]} 25. dxe6 {[%emt 0:00:07]} Rce8 {[%emt 0:01:28]} 26. Bd2 {[%emt 0:00:40]} Rxe6 {[%emt 0:04:22]} 27. Bxb4 {[%emt 0:03:06]} Bxb4 {[%emt 0:01:21]} 28. Qxb4 {[%emt 0:00:05]} Rxe1+ {[%emt 0:00:53]} 29. Qxe1 {[%emt 0:00:04]} Re8 {[%emt 0:00:07]} 30. Qd1 {[%emt 0:00:46]} Qd6 {[%emt 0:02:27]} 31. Bc2 {[%emt 0:00:19]} Qe5 {[%emt 0:00:34]} 32. Bb3+ {[%emt 0:00:14]} Kh8 {[%emt 0:00:06]} 33. Nxg5 {[%emt 0:01:22]} hxg5 {[%emt 0:00:43]} 34. Qh5+ {[%emt 0:01:52]} Kg7 {[%emt 0:00:02]} 35. Qxg5+ {[%emt 0:00:06]} Kh7 {[%emt 0:00:07]} 36. Rf1 {[%emt 0:01:55]} Bb5 {[%emt 0:01:02]} 37. Bf7 {[%emt 0:00:38]} 1-0

[Event "VII Totalizator Sportowy 2022"]
[Site "Bydgoszcz"]
[Date "2022.06.28"]
[Round "4.16"]
[White "Chojnacki, Krzysztof"]
[Black "Starosciak, Szymon"]
[Result "1-0"]
[ECO "D35"]
[WhiteElo "2371"]
[BlackElo "1901"]
[Annotator "TA"]
[PlyCount "97"]
[EventDate "2022.06.25"]
[EventType "swiss"]
[EventCountry "POL"]
[SourceTitle "playchess.com"]
[Source "ChessBase"]
[SourceQuality "1"]
[TimeControl "40/5400+30:1800+30"]

{[%evp 18,97,8,0,0,0,0,0,0,0,0,0,0,0,0,0,2,0,0,0,47,55,89,90,97,24,35,35,37,16,13,22,16,29,27,24,24,0,0,0,0,0,0,0,0,0,0,0,0,0,0,0,0,0,48,48,301,301,291,280,251,244,497,485,1300,1208,2716,2581,29967,29969,29968,29970,29970,29971,29970,29972,29969,29972,29970,29972,5666,4631]} 1. d4 d5 2. c4 e6 3. Nc3 Nf6 4. cxd5 exd5 5. Bg5 c6 6. e3 Bd6 7. Bd3 O-O 8. Qc2 h6 9. Bh4 Re8 10. Nf3 Be6 {D35: Queen's Gambit Declined: Exchange Variation.} 11. O-O Nbd7 {Inhibits Ne5.} 12. Rfe1 {[%emt 0:23:20]} Qb8 {[%emt 0:23:03] The position is equal.} 13. Bg3 Bxg3 {[%emt 0:00:41]} 14. hxg3 {[%emt 0:01:28]} Qd6 {[%emt 0:00:30]} 15. Rab1 a5 16. a3 {[%emt 0:06:21]} Rec8 {[%emt 0:28:16] [#]} 17. Rbc1 $146 {[%emt 0:03:48]} ({Predecessor:} 17. b4 axb4 18. axb4 b5 19. e4 dxe4 20. Bxe4 Nb6 21. Bf5 Bxf5 22. Qxf5 Nbd5 23. Nxd5 Nxd5 {0-1 (41) Papasimakopoulos,A (2274)-Salinas Herrera,P (2513) Chess.com INT 2021}) 17... Bg4 {[%emt 0:04:17]} 18. Na4 {[%emt 0:04:11]} Bxf3 {[%emt 0:05:23]} (18... Re8 $11 {feels stronger.}) 19. gxf3 $14 {[%emt 0:00:31]} b6 {[%emt 0:02:15]} 20. Bf5 {[%emt 0:05:08] e4 is the strong threat.} g6 {[%emt 0:01:46]} 21. Bxg6 {[%emt 0:18:00]} fxg6 $11 {[%emt 0:00:12]} 22. Qxg6+ {[%emt 0:00:03]} Kf8 {[%emt 0:00:20]} 23. e4 {[%emt 0:00:33]} (23. Kg2 $5 {[%cal Re3e4]}) 23... dxe4 {[%emt 0:08:49]} 24. fxe4 {[%emt 0:01:36]} Qxd4 {[%emt 0:01:55]} 25. e5 {[%emt 0:04:08][%cal Oe5e6]} Ng4 {[%emt 0:00:41]} 26. Qf5+ {[%emt 0:01:17]} Ke7 $1 {[%emt 0:04:23] Hoping for ...Rf8.} 27. Red1 {[%emt 0:02:07] The board is on fire.} (27. Re4 {with more complications.} Qxf2+ 28. Qxf2 Nxf2 29. Kxf2 Rf8+ 30. Ke3) 27... Qxf2+ {[%emt 0:01:09]} 28. Qxf2 {[%emt 0:00:03]} Nxf2 {[%emt 0:00:05]} 29. Rxd7+ {[%emt 0:01:27][%mdl 64] Remove Defender, Decoy} Kxd7 {[%emt 0:00:22]} 30. Nxb6+ {[%emt 0:00:04]} Ke6 {[%emt 0:01:07] Strongly threatening ...Nd3.} 31. Nxc8 {[%emt 0:00:26]} Rxc8 {[%emt 0:05:32]} 32. Kxf2 {[%emt 0:00:44][%mdl 4096] Endgame KR-KR} c5 {[%emt 0:00:09]} 33. Ke3 {[%emt 0:07:40]} Kxe5 {[%emt 0:02:17]} 34. Rh1 {[%emt 0:00:41]} Kd5 {[%emt 0:00:24]} 35. Rxh6 {[%emt 0:00:54]} Rb8 {[%emt 0:05:07]} (35... Rg8 $11) 36. Rh2 $14 {[%emt 0:03:33]} Ke5 $2 {[%emt 0:03:00][%mdl 8192] A mistake that costs the game.} (36... Re8+ $14 37. Kd2 Kc4) 37. Kd3 $18 {[%emt 0:01:39]} Kd5 {[%emt 0:00:10] [#]} 38. Rg2 $1 {[%emt 0:01:10]} c4+ {[%emt 0:03:20] [#]} 39. Kc2 $1 {[%emt 0:03:06] Threatens to win with g4.} Rb3 $2 {[%emt 0:00:18]} (39... Rb5 40. Rd2+ Kc6) 40. g4 {[%emt 0:00:00][%cal Bg3g4,Bg4g5,Bg5g6,Bg6g7][%mdl 32]} a4 {[%emt 0:00:00]} (40... Kd6 $142 41. g5 Ke7) 41. g5 {[%emt 0:01:18] aiming for g6.} c3 {[%emt 0:00:58]} 42. bxc3 {[%emt 0:00:34][%cal Bb2c3,Bc3c4][%mdl 32] Black must now prevent Kd3.} Rxa3 {[%emt 0:00:19]} 43. Kd3 {[%emt 0:00:07]} Rb3 {[%emt 0:01:13]} 44. g6 {[%emt 0:02:00]} Rb8 {[%emt 0:00:05]} 45. g7 {[%emt 0:00:44]} Rg8 {[%emt 0:00:08]} 46. c4+ {[%emt 0:00:57]} Kc5 {[%emt 0:18:18]} 47. Kc3 {[%emt 0:01:16]} a3 {[%emt 0:00:14]} 48. Rg5+ {[%emt 0:00:35]} Kc6 {[%emt 0:00:33]} 49. Kb3 {[%emt 0:00:12] Weighted Error Value: White=0.04 (flawless) /Black=0.51} 1-0

[Event "VII Totalizator Sportowy 2022"]
[Site "Bydgoszcz"]
[Date "2022.06.28"]
[Round "4.17"]
[White "Kowalski, Igor"]
[Black "Prieb, Robert"]
[Result "1-0"]
[ECO "D86"]
[WhiteElo "2370"]
[BlackElo "2034"]
[Annotator "TA"]
[PlyCount "53"]
[EventDate "2022.06.25"]
[EventType "swiss"]
[EventCountry "POL"]
[SourceTitle "playchess.com"]
[Source "ChessBase"]
[SourceQuality "1"]
[TimeControl "40/5400+30:1800+30"]

{[%evp 21,53,14,17,13,39,14,77,104,98,115,76,-4,129,116,402,417,407,376,469,615,607,609,604,608,584,594,580,533,29989,29990,29990,29991,29991,29990]} 1. d4 {[%emt 0:00:02]} Nf6 {[%emt 0:00:13]} 2. c4 {[%emt 0:00:04]} g6 {[%emt 0:00:17]} 3. Nc3 {[%emt 0:00:05]} d5 {[%emt 0:00:22]} 4. cxd5 Nxd5 {[%emt 0:00:11]} 5. e4 {[%emt 0:00:08]} Nxc3 6. bxc3 {[%emt 0:00:04]} Bg7 {[%emt 0:00:42]} 7. Bc4 {[%emt 0:00:12]} c5 {[%emt 0:00:30]} 8. Ne2 {[%emt 0:00:08]} O-O {[%emt 0:00:43]} 9. O-O {[%emt 0:00:05]} Nc6 {[%emt 0:00:36]} 10. Be3 {[%emt 0:00:09]} Qc7 {[%emt 0:00:56] 10...Bg4 is a critical line.} 11. Rc1 b6 {[%emt 0:00:35]} 12. h4 {[%emt 0:00:45] D87: Exchange Grünfeld: Classical Line: Variations without ...cxd4.} h5 {[%emt 0:02:44] [#]} 13. Nf4 $146 {[%emt 0:12:37] And now Nxg6 would win.} ({Predecessor:} 13. Qd2 e6 14. Bh6 Na5 15. Bxg7 Kxg7 16. Bd3 Bb7 17. e5 Nc6 18. Qg5 Qe7 19. Qg3 cxd4 {1-0 (47) Sirosh,I (2405)-Papp,P (2338) Chess.com INT 2020}) 13... Na5 {[%emt 0:04:52]} (13... e6 $1 $11) 14. Bd3 $1 $16 {[%emt 0:14:52] White is better.} Bb7 15. e5 e6 {[%emt 0:14:29] [#]} 16. g4 {[%emt 0:05:49]} (16. Nxh5 $1 $16 {aiming for Nf4.} gxh5 17. Qxh5) 16... Qc6 {[%emt 0:10:15]} (16... Qd8 $1 $11 {keeps the balance.} 17. g5 Qd7) 17. Kh2 {[%emt 0:01:04] Active counter play!} f6 $2 {[%emt 0:14:31][%mdl 8192] This move loses the game for Black.} (17... Bh6 $16 {might work better.} 18. Rg1 Bxf4+ 19. Bxf4 Qf3 20. Qxf3 Bxf3) 18. Rg1 $18 {[%emt 0:09:48]} ({Not} 18. d5 exd5 19. Nxg6 Qc7 $16) 18... fxe5 {[%emt 0:01:57]} 19. Nxg6 {[%emt 0:00:49]} Qd6 {[%emt 0:00:47][%cal Re5d4] Against Ne7+} 20. dxe5 {[%emt 0:12:14]} (20. dxc5 bxc5 21. Bc2 (21. Nxf8 e4+ 22. Rg3 exd3 $16) 21... Qxd1 22. Rcxd1 Rf7 23. gxh5 (23. Bxc5 hxg4 24. Ne7+ Kh8 $18) 23... Nc4 24. Bxc5 Bf3 25. Ne7+ Rxe7 $18) 20... Bxe5+ {[%emt 0:01:40]} 21. f4 $1 {[%emt 0:00:32]} Rxf4 {[%emt 0:08:45]} 22. Nxf4 {[%emt 0:04:18]} ({Less strong is} 22. Nxe5 Qxe5 23. Bxf4 (23. gxh5+ Rg4+ 24. Kh3 Qxe3+ $11) 23... Qxf4+ 24. Kh3 Bf3 25. gxh5+ Kh8 $18) 22... Bxf4+ {[%emt 0:00:10]} 23. Kh3 {[%emt 0:00:10]} Kh8 {[%emt 0:03:46] [#] ...Rd8 is the strong threat.} 24. g5 $1 {[%emt 0:03:14][%cal Bg4g5,Bg5g6][%mdl 32]} Bxe3 {[%emt 0:14:21]} (24... Kg8 25. Bh7+) 25. Qxh5+ {[%emt 0:00:05] White mates.} Kg8 {[%emt 0:00:17]} 26. Qh7+ {[%emt 0:00:05]} Kf8 {[%emt 0:00:16]} 27. g6 {[%emt 0:01:40] Weighted Error Value: White=0.06 (flawless) /Black=0.95} 1-0

[Event "VII Totalizator Sportowy 2022"]
[Site "Bydgoszcz"]
[Date "2022.06.28"]
[Round "4.18"]
[White "Perkampus, Laurin"]
[Black "Kulon, Klaudia"]
[Result "1-0"]
[ECO "D31"]
[WhiteElo "2061"]
[BlackElo "2305"]
[Annotator "TA"]
[PlyCount "27"]
[EventDate "2022.06.25"]
[EventType "swiss"]
[EventCountry "POL"]
[SourceTitle "playchess.com"]
[Source "ChessBase"]
[SourceQuality "1"]
[TimeControl "40/5400+30:1800+30"]

{[%evp 16,27,6,7,104,104,156,75,247,197,202,201,332,280]} 1. d4 d5 2. c4 e6 3. Nc3 c6 4. e4 dxe4 5. Nxe4 Bb4+ 6. Bd2 {[%cal Bc1d2,Bd2b4,Bb4d6][%mdl 32]} Qxd4 7. Bxb4 Qxe4+ 8. Be2 Na6 9. Bd6 {Threatens to win with Nf3.} Qh4 {[#] D31: Queen's Gambit Declined: Semi-Slav without ...Nf6 (+ Marshall Gambit and Noteboom) and Exchange Variation lines without ...Nf6.} (9... Qxg2 $11 {keeps the balance.} 10. Bf3 Qg6) 10. Qd2 $146 {[%mdl 1024] White has strong compensation.} ({Predecessor:} 10. Nf3 Qd8 11. Qd4 f6 12. O-O-O Ne7 13. Qc3 Kf7 14. g4 h6 15. h4 Qb6 16. g5 hxg5 17. hxg5 Bd7 18. gxf6 gxf6 19. Ng5+ {1-0 (19) Vinogradov,A (2309)-Protopopova,A (2123) Voronezh 2017}) 10... Qd8 (10... Nh6 $142) 11. O-O-O {White is much more active.} (11. Qc3 $142) 11... f6 $2 {[#]} (11... Ne7 $16) 12. Qc3 {Hoping for Nh3.} Ne7 13. Bh5+ {This bishop pair is nice.} Ng6 (13... g6 {might work better.}) 14. Nh3 {White took control after the opening.  Weighted Error Value: White=0.22 (precise) /Black=0.92} 1-0

[Event "VII Totalizator Sportowy 2022"]
[Site "Bydgoszcz"]
[Date "2022.06.28"]
[Round "4.19"]
[White "Rog, Bartlomiej"]
[Black "Kujawski, Adam"]
[Result "1/2-1/2"]
[ECO "C55"]
[WhiteElo "2055"]
[BlackElo "2246"]
[Annotator "RC"]
[PlyCount "81"]
[EventDate "2022.06.25"]
[EventType "swiss"]
[EventCountry "POL"]
[SourceTitle "playchess.com"]
[Source "ChessBase"]
[SourceQuality "1"]
[TimeControl "40/5400+30:1800+30"]

1. e4 {[%emt 0:00:05]} e5 {[%emt 0:01:19]} 2. Nf3 {[%emt 0:00:07]} Nc6 {[%emt 0:00:03]} 3. Bc4 {[%emt 0:00:09]} Nf6 {[%emt 0:00:11]} 4. d3 {[%emt 0:00:07]} d5 {[%emt 0:00:06]} 5. exd5 Nxd5 {[%emt 0:00:06]} 6. O-O {[%emt 0:00:16]} Nb6 {[%emt 0:00:58]} 7. Bb5 {[%emt 0:00:08]} Bd6 {[%emt 0:00:09]} 8. Nxe5 {[%emt 0:00:00]} Bxe5 {[%emt 0:03:40]} 9. Bxc6+ {[%emt 0:00:00]} bxc6 {[%emt 0:00:11]} 10. Re1 Qe7 {[%emt 0:14:02]} 11. Kh1 {[%emt 0:00:35]} O-O {[%emt 0:14:50]} 12. f4 Qh4 {[%emt 0:16:49]} 13. Rxe5 {[%emt 0:10:05]} f6 {[%emt 0:01:59]} 14. Qe1 {[%emt 0:02:39]} Qg4 {[%emt 0:04:28]} 15. Re2 {[%emt 0:06:19]} Bb7 {[%emt 0:19:12]} 16. Nc3 {[%emt 0:07:17]} c5 {[%emt 0:00:35]} 17. Qg3 {[%emt 0:03:22]} Qxg3 {[%emt 0:04:32]} 18. hxg3 {[%emt 0:00:09]} Rfe8 {[%emt 0:03:32]} 19. Kg1 {[%emt 0:16:15]} Rxe2 {[%emt 0:00:47]} 20. Nxe2 {[%emt 0:00:09]} Re8 {[%emt 0:00:02]} 21. Nc3 {[%emt 0:03:26]} Nd5 {[%emt 0:04:58]} 22. Nxd5 {[%emt 0:01:35]} Bxd5 {[%emt 0:00:01]} 23. Kf2 {[%emt 0:00:11]} c4 {[%emt 0:00:09]} 24. dxc4 {[%emt 0:00:38]} Bxc4 {[%emt 0:00:02]} 25. Be3 {[%emt 0:00:09]} a6 {[%emt 0:00:59]} 26. Rd1 {[%emt 0:01:17]} Be6 {[%emt 0:03:41]} 27. Rd4 {[%emt 0:04:48]} Kf7 {[%emt 0:00:25]} 28. Ra4 {[%emt 0:03:13]} Ra8 {[%emt 0:00:05]} 29. b4 {[%emt 0:05:47]} Bd5 {[%emt 0:01:28]} 30. Ra5 {[%emt 0:04:22]} c6 {[%emt 0:01:04]} 31. a4 {[%emt 0:02:22]} h5 {[%emt 0:01:09]} 32. Rc5 {[%emt 0:05:59]} Rb8 {[%emt 0:00:27]} 33. c4 {[%emt 0:00:56]} Be4 {[%emt 0:00:53]} 34. Bd2 {[%emt 0:00:06]} g6 {[%emt 0:01:30]} 35. Ra5 {[%emt 0:00:20]} Ra8 {[%emt 0:01:01]} 36. Bc3 {[%emt 0:04:47]} Ke6 {[%emt 0:00:36]} 37. b5 {[%emt 0:03:19]} cxb5 {[%emt 0:00:38]} 38. axb5 {[%emt 0:00:06]} axb5 {[%emt 0:00:06]} 39. Rxb5 {[%emt 0:00:05]} Rc8 {[%emt 0:01:45]} 40. Rb6+ {[%emt 0:00:00]} Rc6 {[%emt 0:00:00]} 41. Bd4 {[%emt 0:01:15]} 1/2-1/2

[Event "VII Totalizator Sportowy 2022"]
[Site "Bydgoszcz"]
[Date "2022.06.28"]
[Round "4.20"]
[White "Syrkiewicz, Michal"]
[Black "Dzhuguryan, Tygran"]
[Result "1-0"]
[ECO "B10"]
[WhiteElo "2000"]
[BlackElo "2203"]
[Annotator "RC"]
[PlyCount "136"]
[EventDate "2022.06.25"]
[EventType "swiss"]
[EventCountry "POL"]
[SourceTitle "playchess.com"]
[Source "ChessBase"]
[SourceQuality "1"]
[TimeControl "40/5400+30:1800+30"]

1. e4 {[%emt 0:00:03]} c6 {[%emt 0:00:05]} 2. c4 {[%emt 0:00:06]} d5 {[%emt 0:00:06]} 3. exd5 {[%emt 0:00:08]} cxd5 4. cxd5 {[%emt 0:00:04]} Nf6 {[%emt 0:00:11]} 5. Nc3 {[%emt 0:00:17]} g6 {[%emt 0:00:34]} 6. Bc4 {[%emt 0:01:35]} Bg7 {[%emt 0:00:08]} 7. Nge2 {[%emt 0:01:17]} O-O {[%emt 0:00:04]} 8. O-O {[%emt 0:00:43]} Na6 {[%emt 0:00:00]} 9. d3 {[%emt 0:09:03]} Nc7 10. Qb3 {[%emt 0:12:39]} b5 {[%emt 0:14:57]} 11. Bxb5 Rb8 {[%emt 0:12:42]} 12. Qc4 {[%emt 0:05:19]} Nxb5 {[%emt 0:00:35]} 13. Nxb5 {[%emt 0:00:08]} Ba6 {[%emt 0:00:32]} 14. Nec3 {[%emt 0:07:38]} Qa5 {[%emt 0:01:34]} 15. a4 {[%emt 0:05:04]} Rfc8 {[%emt 0:00:21]} 16. Qa2 {[%emt 0:01:08]} Rb7 {[%emt 0:06:57]} 17. Be3 {[%emt 0:03:41]} Ng4 {[%emt 0:01:28]} 18. d6 {[%emt 0:08:55]} exd6 {[%emt 0:03:32]} 19. Bf4 {[%emt 0:07:22]} Rd8 {[%emt 0:01:15]} 20. Bg5 {[%emt 0:04:52]} Rdd7 {[%emt 0:00:38]} 21. Qc4 {[%emt 0:00:49]} Nf6 {[%emt 0:10:22]} 22. Qh4 {[%emt 0:04:53]} Ne8 {[%emt 0:04:15]} 23. Rae1 {[%emt 0:01:54]} Rb8 {[%emt 0:00:58]} 24. Qg4 {[%emt 0:01:52]} Bxb5 {[%emt 0:04:39]} 25. Nxb5 {[%emt 0:00:27]} Rdb7 {[%emt 0:01:37]} 26. Rxe8+ {[%emt 0:01:42]} Rxe8 {[%emt 0:00:02]} 27. Nxd6 {[%emt 0:00:12]} Rb4 {[%emt 0:02:09]} 28. Qd7 {[%emt 0:00:16]} Rf8 {[%emt 0:00:02]} 29. Be7 {[%emt 0:01:15]} Qxa4 {[%emt 0:01:41]} 30. Qxa4 {[%emt 0:00:52]} Rxa4 {[%emt 0:00:02]} 31. Bxf8 {[%emt 0:00:05]} Kxf8 {[%emt 0:01:06]} 32. Nc4 {[%emt 0:00:07]} Rb4 {[%emt 0:01:04]} 33. Ra1 {[%emt 0:02:47]} Bd4 {[%emt 0:05:47]} 34. Kf1 {[%emt 0:00:51]} Rb7 {[%emt 0:01:33]} 35. Ra2 {[%emt 0:00:49]} h5 {[%emt 0:00:16]} 36. Ra1 {[%emt 0:03:17]} Rb5 {[%emt 0:03:11]} 37. Ke2 {[%emt 0:01:13]} Rf5 {[%emt 0:01:15]} 38. Ne3 {[%emt 0:02:05]} Rb5 {[%emt 0:00:25]} 39. Nc4 {[%emt 0:00:15]} Rf5 {[%emt 0:00:03]} 40. Rf1 {[%emt 0:00:00]} Ke7 {[%emt 0:00:00]} 41. f4 {[%emt 0:02:58]} Kd7 {[%emt 0:02:53]} 42. Kf3 {[%emt 0:01:06]} Rb5 {[%emt 0:03:23]} 43. Ke4 {[%emt 0:00:31]} Bh8 {[%emt 0:05:12]} 44. d4 {[%emt 0:03:03]} Rb4 {[%emt 0:02:52]} 45. Kd3 {[%emt 0:00:59]} Rb3+ {[%emt 0:01:16]} 46. Kc2 {[%emt 0:00:21]} Rb4 {[%emt 0:00:04]} 47. Kc3 {[%emt 0:00:16]} Ra4 {[%emt 0:00:05]} 48. f5 {[%emt 0:03:56]} Ke7 {[%emt 0:00:43]} 49. Kd3 {[%emt 0:02:02]} Rb4 {[%emt 0:05:11]} 50. fxg6 {[%emt 0:01:46]} fxg6 {[%emt 0:00:02]} 51. Re1+ {[%emt 0:00:56]} Kf7 {[%emt 0:04:40]} 52. Ra1 {[%emt 0:01:26]} Ke6 {[%emt 0:01:32]} 53. Rxa7 {[%emt 0:00:30]} Rb8 {[%emt 0:00:52]} 54. Ra6+ {[%emt 0:00:27]} Kf5 {[%emt 0:00:03]} 55. Nd6+ {[%emt 0:02:52]} Kf4 {[%emt 0:00:52]} 56. Nf7 {[%emt 0:02:18]} g5 {[%emt 0:05:09]} 57. Nxh8 {[%emt 0:00:34]} Rxh8 {[%emt 0:00:02]} 58. Rf6+ {[%emt 0:00:09]} Kg4 {[%emt 0:00:03]} 59. d5 {[%emt 0:00:16]} h4 {[%emt 0:00:59]} 60. d6 {[%emt 0:00:32]} h3 {[%emt 0:00:05]} 61. g3 {[%emt 0:00:20]} Rb8 {[%emt 0:00:38]} 62. d7 {[%emt 0:00:24]} Rd8 {[%emt 0:00:13]} 63. Rf7 {[%emt 0:00:41]} Kh5 {[%emt 0:00:02]} 64. Kc4 {[%emt 0:00:53]} Kg6 {[%emt 0:00:02]} 65. Re7 {[%emt 0:00:10]} Kf6 {[%emt 0:00:02]} 66. Rh7 {[%emt 0:00:16]} g4 {[%emt 0:00:13]} 67. Kd5 {[%emt 0:00:28]} Kg6 {[%emt 0:00:02]} 68. Re7 {[%emt 0:00:05]} Kf6 1-0